[Event "28th Hit Open-A 2024"]
[Site "Nova Gorica"]
[Date "2024.01.27"]
[Round "3.17"]
[White "Kozlovic, Jernej"]
[Black "Petrosino, Germano"]
[Result "1-0"]
[ECO "B07"]
[WhiteElo "2174"]
[BlackElo "1715"]
[Annotator "RC"]
[PlyCount "65"]
[EventDate "2024.01.22"]
[EventType "swiss"]
[EventCountry "SLO"]
[SourceTitle "playchess.com"]
[Source "ChessBase"]
[SourceQuality "1"]
[TimeControl "5400+30"]

1. e4 {[%emt 0:00:03]} d6 {[%emt 0:00:08]} 2. d4 {[%emt 0:00:24]} Nf6 {[%emt 0:00:12]} 3. Bd3 {[%emt 0:00:54]} e5 {[%emt 0:00:39]} 4. c3 {[%emt 0:00:47]} d5 {[%emt 0:04:28]} 5. dxe5 {[%emt 0:01:15]} Nxe4 {[%emt 0:00:14]} 6. Nf3 {[%emt 0:01:05]} Be7 {[%emt 0:03:46]} 7. O-O {[%emt 0:03:50]} O-O {[%emt 0:03:18]} 8. Nbd2 {[%emt 0:01:17]} Bf5 {[%emt 0:06:14]} 9. Qc2 {[%emt 0:18:14]} Nxd2 {[%emt 0:02:42]} 10. Bxf5 {[%emt 0:05:44]} Nxf3+ {[%emt 0:05:36]} 11. gxf3 {[%emt 0:00:03]} g6 {[%emt 0:00:27]} 12. Kh1 {[%emt 0:20:20]} Bg5 {[%emt 0:02:56]} 13. f4 {[%emt 0:05:04]} Bh6 {[%emt 0:02:52]} 14. Rg1 {[%emt 0:01:34]} Bg7 {[%emt 0:06:38]} 15. Bd3 {[%emt 0:04:33]} Nd7 {[%emt 0:02:47]} 16. Be3 {[%emt 0:01:11]} c5 {[%emt 0:03:22]} 17. Rad1 {[%emt 0:01:13]} Rc8 {[%emt 0:01:32]} 18. Qa4 {[%emt 0:13:08]} Qc7 {[%emt 0:04:19]} 19. Be2 {[%emt 0:00:29]} a6 {[%emt 0:01:57]} 20. Bf3 {[%emt 0:01:56]} Rfd8 {[%emt 0:08:09]} 21. Bxd5 {[%emt 0:02:28]} Nb6 {[%emt 0:01:26]} 22. Qe4 {[%emt 0:00:11]} Nxd5 {[%emt 0:01:03]} 23. Rxd5 {[%emt 0:00:05]} Rxd5 {[%emt 0:00:28]} 24. Qxd5 {[%emt 0:00:03]} Rd8 {[%emt 0:00:35]} 25. Qxc5 {[%emt 0:00:42]} Qxc5 {[%emt 0:00:13]} 26. Bxc5 {[%emt 0:00:05]} Rd2 {[%emt 0:00:11]} 27. Kg2 {[%emt 0:05:27]} Rxb2 {[%emt 0:02:14]} 28. Rd1 {[%emt 0:00:17]} h5 {[%emt 0:00:23]} 29. Rd8+ {[%emt 0:00:24]} Kh7 {[%emt 0:00:08]} 30. Rd7 {[%emt 0:01:01]} Kg8 {[%emt 0:00:17]} 31. a3 {[%emt 0:03:01]} Rb3 {[%emt 0:03:32]} 32. Bd4 {[%emt 0:01:47]} Bh6 {[%emt 0:02:31]} 33. Rd8+ {[%emt 0:00:31]} 1-0

[Event "28th Hit Open-A 2024"]
[Site "Nova Gorica"]
[Date "2024.01.27"]
[Round "3.18"]
[White "Bazilius, Augustinas"]
[Black "Jalovec, Igor"]
[Result "1/2-1/2"]
[ECO "A07"]
[WhiteElo "2030"]
[BlackElo "1703"]
[Annotator "NA RC"]
[PlyCount "132"]
[EventDate "2024.01.22"]
[EventType "swiss"]
[EventCountry "SLO"]
[SourceTitle "playchess.com"]
[Source "ChessBase"]
[SourceQuality "1"]
[TimeControl "5400+30"]

1. Nf3 {[%emt 0:01:58]} d5 {[%emt 0:01:50]} 2. g3 {[%emt 0:00:05]} g6 {[%emt 0:01:14]} 3. Bg2 {[%emt 0:00:13]} Bg7 {[%emt 0:00:13]} 4. O-O {[%emt 0:00:07]} Nf6 {[%emt 0:00:58]} 5. c4 {[%emt 0:00:09]} dxc4 {[%emt 0:01:30]} 6. Qa4+ {[%emt 0:00:45]} Nbd7 {[%emt 0:01:02]} 7. Qxc4 {[%emt 0:00:29]} O-O {[%emt 0:00:18]} 8. d3 {[%emt 0:04:29]} c6 {[%emt 0:02:34]} 9. Nbd2 {[%emt 0:05:03]} Nb6 {[%emt 0:01:42]} 10. Qc2 {[%emt 0:01:38]} Qc7 {[%emt 0:02:42]} 11. d4 {[%emt 0:07:44]} Rd8 {[%emt 0:05:30]} 12. e4 {[%emt 0:10:48]} h6 {[%emt 0:06:20]} 13. Nb3 {[%emt 0:05:48]} Bg4 {[%emt 0:01:57]} 14. Ne5 {[%emt 0:04:37]} Be6 {[%emt 0:01:48]} 15. d5 {[%emt 0:08:26]} Bd7 {[%emt 0:05:37]} 16. Bf4 {[%emt 0:04:59]} Qc8 {[%emt 0:00:34]} 17. Qd2 {[%emt 0:05:36]} g5 {[%emt 0:05:41]} 18. Be3 {[%emt 0:01:08]} Nxe4 {[%emt 0:03:02]} 19. Bxe4 {[%emt 0:00:02]} Bxe5 {[%emt 0:00:20]} 20. f4 {[%emt 0:00:02]} Nc4 {[%emt 0:01:48]} 21. Qe2 {[%emt 0:01:00]} Nxe3 {[%emt 0:00:32]} 22. Qxe3 {[%emt 0:02:32]} Bf6 {[%emt 0:03:23]} 23. fxg5 {[%emt 0:00:57]} Bxg5 {[%emt 0:02:35]} 24. Qf3 {[%emt 0:02:12]} f5 {[%emt 0:01:21]} 25. Bd3 {[%emt 0:05:16]} cxd5 {[%emt 0:01:11]} 26. h4 {[%emt 0:07:12]} Bf6 {[%emt 0:01:29]} 27. Qh5 {[%emt 0:00:45]} Bg7 {[%emt 0:02:14]} 28. Bxf5 {[%emt 0:02:17]} Bxf5 {[%emt 0:02:14]} 29. Rxf5 {[%emt 0:00:14]} Qc7 {[%emt 0:04:22]} 30. Rf3 {[%emt 0:02:16]} e5 {[%emt 0:03:16]} 31. Kg2 {[%emt 0:02:01]} Rf8 {[%emt 0:05:47]} 32. Raf1 {[%emt 0:00:55]} d4 {[%emt 0:05:10]} 33. Qg6 {[%emt 0:01:33]} Qc6 {[%emt 0:02:09]} 34. Qxc6 {[%emt 0:00:07]} bxc6 {[%emt 0:00:03]} 35. Rxf8+ {[%emt 0:01:18]} Rxf8 {[%emt 0:00:54]} 36. Rxf8+ {[%emt 0:00:06]} Kxf8 {[%emt 0:00:43]} 37. Kf3 {[%emt 0:00:01]} Ke7 {[%emt 0:00:49]} 38. Ke4 {[%emt 0:00:16]} Kd6 {[%emt 0:01:00]} 39. Nd2 {[%emt 0:00:05]} Kc5 {[%emt 0:01:09]} 40. g4 {[%emt 0:00:09]} Kd6 {[%emt 0:02:19]} 41. g5 {[%emt 0:04:25]} hxg5 {[%emt 0:02:19]} 42. hxg5 {[%emt 0:00:01]} Ke6 {[%emt 0:00:27]} 43. Nc4 {[%emt 0:02:06]} a6 {[%emt 0:01:38]} 44. b3 {[%emt 0:00:43]} Bh8 {[%emt 0:02:01]} 45. Nd2 {[%emt 0:01:07]} Kd6 {[%emt 0:01:45]} 46. Nc4+ {[%emt 0:00:05]} Kc5 {[%emt 0:01:26]} 47. a3 {[%emt 0:01:36]} Kb5 {[%emt 0:12:14]} 48. Nd6+ {[%emt 0:03:12]} Kc5 {[%emt 0:01:22]} 49. Nf5 {[%emt 0:00:08]} a5 {[%emt 0:01:33]} 50. g6 {[%emt 0:03:07]} Kb5 {[%emt 0:00:17]} 51. Nd6+ {[%emt 0:01:38]} Kc5 {[%emt 0:01:00]} 52. Nf5 {[%emt 0:00:51]} Kb5 {[%emt 0:00:05]} 53. Nd6+ {[%emt 0:01:09]} Kc5 {[%emt 0:00:06]} 54. Ne8 {[%emt 0:00:04]} Kb5 {[%emt 0:00:17]} 55. Nc7+ {[%emt 0:00:58]} Kc5 {[%emt 0:00:44]} 56. g7 {[%emt 0:00:11]} Bxg7 {[%emt 0:00:11]} 57. Ne6+ {[%emt 0:00:01]} Kb5 {[%emt 0:00:08]} 58. Nxg7 {[%emt 0:00:09]} a4 {[%emt 0:01:04]} 59. b4 {[%emt 0:00:01]} c5 {[%emt 0:00:05]} 60. bxc5 {[%emt 0:00:06]} Kxc5 {[%emt 0:00:11]} 61. Kd3 {[%emt 0:00:13]} e4+ {[%emt 0:00:19]} 62. Kxe4 {[%emt 0:00:25]} Kc4 {[%emt 0:00:07]} 63. Ne6 {[%emt 0:01:47]} Kb3 {[%emt 0:00:05]} 64. Kxd4 {[%emt 0:00:07]} Kxa3 {[%emt 0:00:08]} 65. Kc3 {[%emt 0:00:10]} Ka2 {[%emt 0:00:04]} 66. Kc2 {[%emt 0:00:07]} Ka3 {[%emt 0:00:03]} 1/2-1/2

[Event "28th Hit Open-A 2024"]
[Site "Nova Gorica"]
[Date "2024.01.27"]
[Round "3.19"]
[White "Trybus, Dominika"]
[Black "Szegedy, Matyas"]
[Result "0-1"]
[ECO "B41"]
[WhiteElo "1530"]
[BlackElo "2129"]
[Annotator "NA RC"]
[PlyCount "76"]
[EventDate "2024.01.22"]
[EventType "swiss"]
[EventCountry "SLO"]
[SourceTitle "playchess.com"]
[Source "ChessBase"]
[SourceQuality "1"]
[TimeControl "5400+30"]

1. e4 {[%emt 0:00:02]} c5 {[%emt 0:00:14]} 2. Nf3 {[%emt 0:00:12]} e6 {[%emt 0:00:10]} 3. d4 {[%emt 0:00:28]} cxd4 {[%emt 0:00:15]} 4. Nxd4 {[%emt 0:00:06]} a6 {[%emt 0:00:09]} 5. c4 {[%emt 0:00:50]} Nf6 {[%emt 0:00:15]} 6. Nc3 {[%emt 0:00:34]} Bb4 {[%emt 0:03:14]} 7. Bd3 {[%emt 0:04:12]} Qc7 {[%emt 0:00:52]} 8. O-O {[%emt 0:00:48]} Nc6 {[%emt 0:00:39]} 9. Be3 {[%emt 0:05:26]} O-O {[%emt 0:01:38]} 10. Kh1 {[%emt 0:01:38]} Nxd4 {[%emt 0:16:41]} 11. Bxd4 {[%emt 0:00:39]} e5 {[%emt 0:00:10]} 12. Be3 {[%emt 0:03:13]} Bxc3 {[%emt 0:00:38]} 13. bxc3 {[%emt 0:00:09]} d6 {[%emt 0:00:08]} 14. Rb1 {[%emt 0:04:50]} Be6 {[%emt 0:01:25]} 15. Qa4 {[%emt 0:04:36]} Rfc8 {[%emt 0:06:20]} 16. c5 {[%emt 0:06:15]} dxc5 {[%emt 0:00:46]} 17. f3 {[%emt 0:00:48]} b5 {[%emt 0:08:35]} 18. Qc2 {[%emt 0:04:10]} Ne8 {[%emt 0:06:42]} 19. a4 {[%emt 0:05:42]} Nd6 {[%emt 0:16:53]} 20. axb5 {[%emt 0:02:35]} c4 {[%emt 0:00:10]} 21. Be2 {[%emt 0:05:21]} Nxb5 {[%emt 0:03:23]} 22. Ra1 {[%emt 0:04:12]} Rd8 {[%emt 0:00:53]} 23. Ra4 {[%emt 0:01:55]} Qc6 {[%emt 0:06:22]} 24. Rfa1 {[%emt 0:02:03]} Nd4 {[%emt 0:06:34]} 25. cxd4 {[%emt 0:06:55]} exd4 {[%emt 0:00:05]} 26. Bxd4 {[%emt 0:03:06]} Rxd4 {[%emt 0:00:11]} 27. Qc3 {[%emt 0:00:40]} Rad8 {[%emt 0:02:05]} 28. h3 {[%emt 0:00:50]} Rd2 {[%emt 0:06:40]} 29. Qe3 {[%emt 0:07:12]} h6 {[%emt 0:03:19]} 30. Rxa6 {[%emt 0:00:38]} Qb7 {[%emt 0:00:19]} 31. R6a3 {[%emt 0:04:19]} Qb2 {[%emt 0:00:57]} 32. R3a2 {[%emt 0:02:23]} Qb4 {[%emt 0:06:05]} 33. Ra4 {[%emt 0:04:12]} Qb3 {[%emt 0:00:21]} 34. R4a3 {[%emt 0:02:40]} Qxe3 {[%emt 0:01:42]} 35. Rxe3 {[%emt 0:00:08]} c3 {[%emt 0:01:04]} 36. Kh2 {[%emt 0:03:23]} c2 {[%emt 0:00:17]} 37. Rc1 {[%emt 0:01:48]} Rb8 {[%emt 0:00:20]} 38. Bd3 {[%emt 0:00:49]} Rb3 {[%emt 0:00:30]} 0-1

[Event "28th Hit Open-A 2024"]
[Site "Nova Gorica"]
[Date "2024.01.27"]
[Round "3.20"]
[White "Gregoric, Andraz"]
[Black "Goroshkov, Maksym"]
[Result "0-1"]
[ECO "B40"]
[WhiteElo "2217"]
[BlackElo "2338"]
[Annotator "RC"]
[PlyCount "126"]
[EventDate "2024.01.22"]
[EventType "swiss"]
[EventCountry "SLO"]
[SourceTitle "playchess.com"]
[Source "ChessBase"]
[SourceQuality "1"]
[TimeControl "5400+30"]

1. e4 {[%emt 0:00:01]} c5 {[%emt 0:02:48]} 2. Nf3 {[%emt 0:00:09]} e6 {[%emt 0:00:14]} 3. c4 {[%emt 0:00:05]} Nc6 {[%emt 0:00:44]} 4. Nc3 {[%emt 0:00:04]} Nd4 {[%emt 0:00:06]} 5. g3 {[%emt 0:00:10]} Ne7 {[%emt 0:00:30]} 6. Bg2 {[%emt 0:00:05]} Nec6 {[%emt 0:00:31]} 7. d3 {[%emt 0:00:27]} g6 {[%emt 0:02:03]} 8. O-O {[%emt 0:00:06]} Bg7 {[%emt 0:00:33]} 9. a3 {[%emt 0:00:05]} O-O {[%emt 0:02:39]} 10. Rb1 {[%emt 0:00:04]} a5 {[%emt 0:00:39]} 11. Nxd4 {[%emt 0:00:41]} Nxd4 {[%emt 0:00:19]} 12. Bd2 {[%emt 0:01:48]} d6 {[%emt 0:00:19]} 13. b3 {[%emt 0:11:35]} Bd7 {[%emt 0:01:34]} 14. a4 {[%emt 0:00:08]} Bc6 {[%emt 0:00:26]} 15. Ne2 {[%emt 0:00:36]} d5 {[%emt 0:01:49]} 16. Nxd4 {[%emt 0:00:48]} Bxd4 {[%emt 0:00:12]} 17. Bh6 {[%emt 0:01:12]} Re8 {[%emt 0:00:20]} 18. h4 {[%emt 0:02:21]} dxe4 {[%emt 0:00:32]} 19. dxe4 {[%emt 0:00:06]} Qc7 {[%emt 0:01:49]} 20. Qe2 {[%emt 0:02:28]} Qxg3 {[%emt 0:02:34]} 21. h5 {[%emt 0:01:17]} Qh4 {[%emt 0:00:00]} 22. Rbd1 {[%emt 0:03:41]} f5 {[%emt 0:06:39]} 23. Rd3 {[%emt 0:03:22]} Bxe4 {[%emt 0:00:38]} 24. Rh3 {[%emt 0:00:43]} Qg4 {[%emt 0:00:47]} 25. Qxg4 {[%emt 0:00:05]} fxg4 {[%emt 0:00:03]} 26. Rg3 {[%emt 0:00:05]} Bxg2 {[%emt 0:00:32]} 27. Kxg2 {[%emt 0:00:01]} gxh5 {[%emt 0:01:16]} 28. Rh1 {[%emt 0:00:11]} e5 {[%emt 0:08:54]} 29. Rxh5 {[%emt 0:00:08]} Ra6 {[%emt 0:00:02]} 30. Rxg4+ {[%emt 0:01:08]} Rg6 {[%emt 0:00:04]} 31. Rxg6+ {[%emt 0:02:00]} hxg6 {[%emt 0:00:05]} 32. Rh3 {[%emt 0:00:52]} Re6 {[%emt 0:00:46]} 33. Rf3 {[%emt 0:01:40]} e4 {[%emt 0:00:38]} 34. Rg3 {[%emt 0:08:00]} Rf6 {[%emt 0:01:01]} 35. Be3 {[%emt 0:00:06]} Kf7 {[%emt 0:00:57]} 36. Rh3 {[%emt 0:02:30]} Ke6 {[%emt 0:02:06]} 37. Rh4 {[%emt 0:07:14]} Ke5 {[%emt 0:00:39]} 38. Rh7 {[%emt 0:00:16]} Bxe3 {[%emt 0:02:36]} 39. fxe3 {[%emt 0:00:07]} Rb6 {[%emt 0:00:44]} 40. Rd7 {[%emt 0:01:13]} Rxb3 {[%emt 0:00:37]} 41. Rd5+ {[%emt 0:00:01]} Kf6 {[%emt 0:00:18]} 42. Rxc5 {[%emt 0:00:25]} b6 {[%emt 0:00:19]} 43. Rd5 {[%emt 0:06:49]} Rxe3 {[%emt 0:00:35]} 44. c5 {[%emt 0:00:09]} Rd3 {[%emt 0:07:33]} 45. Rxd3 {[%emt 0:00:04]} exd3 {[%emt 0:00:03]} 46. cxb6 {[%emt 0:00:31]} d2 {[%emt 0:00:03]} 47. b7 {[%emt 0:00:03]} d1=Q {[%emt 0:00:03]} 48. b8=Q {[%emt 0:00:04]} Qg4+ {[%emt 0:00:48]} 49. Kf2 {[%emt 0:02:26]} Qf5+ {[%emt 0:00:09]} 50. Kg2 {[%emt 0:01:50]} Ke6 {[%emt 0:00:25]} 51. Qb6+ {[%emt 0:01:35]} Ke7 {[%emt 0:00:38]} 52. Qc7+ {[%emt 0:00:37]} Ke8 {[%emt 0:00:54]} 53. Qc6+ {[%emt 0:01:39]} Kf8 {[%emt 0:00:37]} 54. Qa8+ {[%emt 0:00:50]} Kg7 {[%emt 0:00:14]} 55. Qb7+ {[%emt 0:00:21]} Kh6 {[%emt 0:00:13]} 56. Qb5 {[%emt 0:00:48]} Kh5 {[%emt 0:01:23]} 57. Kg3 {[%emt 0:00:10]} Kg5 {[%emt 0:00:10]} 58. Kg2 {[%emt 0:03:12]} Kf4 {[%emt 0:00:36]} 59. Qb3 {[%emt 0:04:07]} Ke5 {[%emt 0:02:37]} 60. Qc3+ {[%emt 0:02:08]} Kd6 {[%emt 0:00:30]} 61. Qa3+ {[%emt 0:00:26]} Kd5 {[%emt 0:00:00]} 62. Qb3+ {[%emt 0:00:23]} Kd4 {[%emt 0:00:05]} 63. Kh1 {[%emt 0:03:14]} Qd5+ {[%emt 0:00:09]} 0-1

[Event "28th Hit Open-A 2024"]
[Site "Nova Gorica"]
[Date "2024.01.27"]
[Round "3.21"]
[White "Stevanic, David"]
[Black "Marchesich, Giovanni"]
[Result "0-1"]
[ECO "B15"]
[WhiteElo "2294"]
[BlackElo "2210"]
[Annotator "RC"]
[PlyCount "90"]
[EventDate "2024.01.22"]
[EventType "swiss"]
[EventCountry "SLO"]
[SourceTitle "playchess.com"]
[Source "ChessBase"]
[SourceQuality "1"]
[TimeControl "5400+30"]

1. e4 {[%emt 0:00:02]} c6 {[%emt 0:00:08]} 2. d4 {[%emt 0:00:20]} d5 {[%emt 0:00:06]} 3. Nc3 {[%emt 0:00:03]} dxe4 {[%emt 0:00:10]} 4. Nxe4 {[%emt 0:00:05]} Nf6 {[%emt 0:01:13]} 5. Nxf6+ {[%emt 0:00:24]} exf6 {[%emt 0:00:06]} 6. Nf3 {[%emt 0:00:35]} Bd6 {[%emt 0:00:24]} 7. Bd3 {[%emt 0:01:26]} O-O {[%emt 0:00:52]} 8. Be3 {[%emt 0:01:18]} Re8 {[%emt 0:09:40]} 9. Qd2 {[%emt 0:03:55]} Nd7 {[%emt 0:02:26]} 10. O-O {[%emt 0:04:55]} Nf8 {[%emt 0:00:18]} 11. Nh4 {[%emt 0:04:48]} g6 {[%emt 0:09:24]} 12. c4 {[%emt 0:03:31]} Ne6 {[%emt 0:08:48]} 13. g3 {[%emt 0:04:45]} Ng5 {[%emt 0:07:36]} 14. Rfe1 {[%emt 0:08:30]} Bg4 {[%emt 0:06:39]} 15. Bxg5 {[%emt 0:05:52]} Rxe1+ {[%emt 0:00:14]} 16. Rxe1 {[%emt 0:00:23]} fxg5 {[%emt 0:00:13]} 17. Ng2 {[%emt 0:00:10]} Bf8 {[%emt 0:06:37]} 18. Be2 {[%emt 0:04:40]} Be6 {[%emt 0:04:32]} 19. Ne3 {[%emt 0:01:58]} Qb6 {[%emt 0:02:12]} 20. Rd1 {[%emt 0:03:12]} Rd8 {[%emt 0:00:17]} 21. Bf3 {[%emt 0:09:36]} f5 {[%emt 0:11:15]} 22. d5 {[%emt 0:04:29]} f4 {[%emt 0:02:57]} 23. Ng2 {[%emt 0:02:08]} cxd5 {[%emt 0:03:06]} 24. Bxd5 {[%emt 0:05:55]} Bxd5 {[%emt 0:01:34]} 25. cxd5 {[%emt 0:00:07]} Bd6 {[%emt 0:00:38]} 26. gxf4 {[%emt 0:09:42]} Rf8 {[%emt 0:04:47]} 27. f5 {[%emt 0:03:01]} Rxf5 {[%emt 0:00:41]} 28. Ne3 {[%emt 0:00:13]} Rf4 {[%emt 0:01:00]} 29. Qc3 {[%emt 0:01:15]} Qd8 {[%emt 0:05:57]} 30. Rc1 {[%emt 0:04:03]} Rh4 {[%emt 0:00:44]} 31. Nf1 {[%emt 0:05:45]} Qd7 {[%emt 0:03:33]} 32. f3 {[%emt 0:07:40]} Qf5 {[%emt 0:05:31]} 33. Rd1 {[%emt 0:01:38]} g4 {[%emt 0:01:05]} 34. Qd3 {[%emt 0:00:32]} Qxf3 {[%emt 0:00:35]} 35. Qxf3 {[%emt 0:00:14]} gxf3 {[%emt 0:00:01]} 36. Kf2 {[%emt 0:00:42]} Rf4 {[%emt 0:00:36]} 37. Ne3 {[%emt 0:00:32]} Kf7 {[%emt 0:00:30]} 38. b3 {[%emt 0:00:26]} Bc5 {[%emt 0:00:37]} 39. d6 {[%emt 0:00:11]} Ke8 {[%emt 0:00:28]} 40. Rd5 {[%emt 0:00:52]} Bxe3+ {[%emt 0:00:26]} 41. Kxe3 {[%emt 0:00:09]} f2 {[%emt 0:00:00]} 42. d7+ {[%emt 0:00:41]} Kd8 {[%emt 0:00:02]} 43. Kxf4 {[%emt 0:00:07]} f1=Q+ {[%emt 0:00:05]} 44. Ke5 {[%emt 0:00:05]} Qf5+ {[%emt 0:00:16]} 45. Kd4 {[%emt 0:00:04]} Qf4+ {[%emt 0:00:06]} 0-1

[Event "28th Hit Open-A 2024"]
[Site "Nova Gorica"]
[Date "2024.01.27"]
[Round "3.22"]
[White "Caruso, Augusto"]
[Black "Perossa, Nicolas"]
[Result "1/2-1/2"]
[ECO "C47"]
[WhiteElo "2159"]
[BlackElo "2277"]
[Annotator "TA"]
[PlyCount "80"]
[EventDate "2024.01.22"]
[EventType "swiss"]
[EventCountry "SLO"]
[SourceTitle "playchess.com"]
[Source "ChessBase"]
[SourceQuality "1"]
[TimeControl "5400+30"]

{[%evp 24,80,14,0,0,0,5,8,9,2,14,0,0,-6,0,0,0,0,0,-11,-9,-19,-12,-10,0,-8,0,-12,0,-12,0,-18,-20,-33,-40,-37,-13,-52,0,0,0,0,0,0,0,-13,14,0,8,0,0,0,0,0,0,0,0,0,44]} 1. e4 {[%emt 0:04:31]} e5 {[%emt 0:00:07]} 2. Nf3 {[%emt 0:00:04]} Nc6 {[%emt 0:00:10]} 3. Nc3 {[%emt 0:00:06]} Nf6 {[%emt 0:00:06]} 4. d4 {[%emt 0:00:05]} exd4 {[%emt 0:00:06]} 5. Nxd4 {[%emt 0:00:03]} Bb4 {[%emt 0:00:21]} 6. Nxc6 {[%emt 0:00:05]} bxc6 {[%emt 0:00:09]} 7. Bd3 {[%emt 0:00:04]} d5 {[%emt 0:00:14]} 8. exd5 {[%emt 0:00:07]} O-O {[%emt 0:00:14]} 9. O-O {[%emt 0:00:05]} cxd5 {[%emt 0:00:02]} 10. Bg5 {[%emt 0:00:13]} c6 {[%emt 0:00:29]} 11. Qf3 {[%emt 0:00:14]} Bd6 {[%emt 0:00:05]} 12. h3 {[%emt 0:00:32]} h6 {[%emt 0:00:26]} 13. Bf4 {[%emt 0:01:14]} Bxf4 {[%emt 0:01:54]} 14. Qxf4 {[%emt 0:00:02]} Re8 {[%emt 0:00:06]} 15. Rfe1 {[%emt 0:00:22]} Bd7 {[%emt 0:04:31]} 16. Rxe8+ {[%emt 0:01:24]} Qxe8 {[%emt 0:00:05]} 17. Qd6 {[%emt 0:05:41]} Qb8 {[%emt 0:01:00]} 18. Qxb8+ {[%emt 0:01:33]} Rxb8 {[%emt 0:00:02]} 19. Na4 {[%emt 0:01:54]} Kf8 {[%emt 0:02:44]} 20. b3 {[%emt 0:01:21]} Ke7 {[%emt 0:00:09]} 21. Rd1 {[%emt 0:00:24]} Kd6 {[%emt 0:01:13]} 22. Nc3 {[%emt 0:05:29]} g5 {[%emt 0:04:41]} 23. Ne2 {[%emt 0:01:43]} Nh5 {[%emt 0:18:17]} 24. g4 {[%emt 0:05:01]} Nf6 {[%emt 0:03:43]} 25. Ng3 {[%emt 0:02:30]} h5 {[%emt 0:06:39]} 26. f3 {[%emt 0:07:13]} (26. Nxh5 Nxg4 27. Ng3 (27. hxg4 $2 Bxg4 28. Rf1 Bxh5 $17) 27... Ne5 $17) 26... Be6 {[%emt 0:00:22]} 27. Kg2 {[%emt 0:02:20]} ({Don't play} 27. gxh5 Rh8 28. Bf1 Nxh5 $17) (27. Nxh5 Nxh5 28. gxh5 Rh8 $19) 27... a5 {[%emt 0:03:47]} 28. c3 {[%emt 0:21:24] [#]} ({Reject} 28. gxh5 Rh8 29. Be2 Nxh5 30. Nxh5 Rxh5 $17) ({Much weaker is} 28. Nxh5 Nxh5 29. gxh5 Rh8 $17) 28... a4 $1 {[%emt 0:16:08]} 29. b4 {[%emt 0:02:42]} (29. Bc2 h4) 29... c5 {[%emt 0:00:51]} 30. a3 {[%emt 0:05:55]} cxb4 {[%emt 0:00:59]} (30... h4 $15 31. Ne2 Bd7) 31. cxb4 $11 {[%emt 0:00:07] The position is equal.} hxg4 {[%emt 0:00:58]} 32. hxg4 {[%emt 0:00:31]} Rc8 {[%emt 0:02:18]} 33. Ne2 {[%emt 0:00:29] Dodges Rc3} Nd7 {[%emt 0:03:55]} 34. Kf2 {[%emt 0:07:18]} Nb6 {[%emt 0:09:16]} 35. Ke3 {[%emt 0:09:26]} Ke5 {[%emt 0:06:54][%cal Od5d4]} 36. Kd2 {[%emt 0:05:01]} f5 {[%emt 0:01:44]} 37. gxf5 {[%emt 0:01:10]} Bxf5 {[%emt 0:00:58]} 38. Nc3 {[%emt 0:05:51]} Bxd3 {[%emt 0:03:50]} 39. Kxd3 {[%emt 0:00:13]} Nc4 {[%emt 0:04:46] [#] And now ...Nb2+ would win.} 40. Rg1 {[%emt 0:01:04]} Nxa3 {[%emt 0:05:39] Weighted Error Value: White=0.07 (flawless) /Black=0.07 (flawless) .  Mistake:       	---       	Black=1      Inaccurate:     	White=1     	Black=2      OK:         	White=8     	Black=9} 1/2-1/2

[Event "28th Hit Open-A 2024"]
[Site "Nova Gorica"]
[Date "2024.01.27"]
[Round "3.23"]
[White "Markocic, Tine"]
[Black "Plaskan, Jure"]
[Result "1/2-1/2"]
[ECO "B41"]
[WhiteElo "2055"]
[BlackElo "2262"]
[Annotator "RC"]
[PlyCount "90"]
[EventDate "2024.01.22"]
[EventType "swiss"]
[EventCountry "SLO"]
[SourceTitle "playchess.com"]
[Source "ChessBase"]
[SourceQuality "1"]
[TimeControl "5400+30"]

1. e4 {[%emt 0:00:12]} c5 {[%emt 0:00:10]} 2. Nf3 {[%emt 0:00:28]} e6 {[%emt 0:00:05]} 3. d4 {[%emt 0:00:31]} cxd4 {[%emt 0:00:12]} 4. Nxd4 {[%emt 0:00:08]} a6 {[%emt 0:00:04]} 5. c4 {[%emt 0:01:22]} Nf6 {[%emt 0:00:06]} 6. Nc3 {[%emt 0:00:28]} Qc7 {[%emt 0:00:11]} 7. a3 {[%emt 0:02:06]} b6 {[%emt 0:00:18]} 8. f4 {[%emt 0:02:48]} d6 {[%emt 0:01:22]} 9. Bd3 {[%emt 0:02:33]} Be7 {[%emt 0:02:18]} 10. O-O {[%emt 0:05:03]} Nbd7 {[%emt 0:03:55]} 11. Qf3 {[%emt 0:08:15]} Bb7 {[%emt 0:00:58]} 12. Be3 {[%emt 0:01:41]} g6 {[%emt 0:13:28]} 13. Rac1 {[%emt 0:03:54]} Rc8 {[%emt 0:00:15]} 14. Bb1 {[%emt 0:08:24]} Qb8 {[%emt 0:01:46]} 15. Qh3 {[%emt 0:08:07]} Nc5 {[%emt 0:43:23]} 16. f5 {[%emt 0:06:33]} gxf5 {[%emt 0:04:55]} 17. exf5 {[%emt 0:03:09]} e5 {[%emt 0:00:39]} 18. Nde2 {[%emt 0:09:52]} Ncd7 {[%emt 0:00:28]} 19. Nd5 {[%emt 0:17:46]} Rg8 {[%emt 0:07:28]} 20. Ba2 {[%emt 0:02:17]} b5 {[%emt 0:05:34]} 21. Ng3 {[%emt 0:01:42]} bxc4 {[%emt 0:06:59]} 22. Nxe7 {[%emt 0:00:08]} Kxe7 {[%emt 0:00:03]} 23. Rxc4 {[%emt 0:00:11]} Rxc4 {[%emt 0:00:41]} 24. Bxc4 {[%emt 0:00:07]} Ba8 {[%emt 0:00:46]} 25. Rf2 {[%emt 0:01:53]} Qb7 {[%emt 0:02:35]} 26. Qh6 {[%emt 0:05:50]} Qc6 {[%emt 0:02:53]} 27. Bf1 {[%emt 0:02:12]} Ng4 {[%emt 0:01:48]} 28. f6+ {[%emt 0:01:22]} Ndxf6 {[%emt 0:00:15]} 29. Qh4 {[%emt 0:03:08]} Nxf2 {[%emt 0:00:10]} 30. Bxf2 {[%emt 0:00:05]} Rg4 {[%emt 0:00:47]} 31. Qh6 {[%emt 0:00:38]} Rf4 {[%emt 0:00:51]} 32. Qg5 {[%emt 0:01:13]} h6 {[%emt 0:00:32]} 33. Nf5+ {[%emt 0:00:27]} Ke6 {[%emt 0:00:02]} 34. Ng7+ {[%emt 0:01:03]} Kd7 {[%emt 0:00:02]} 35. Qg3 {[%emt 0:00:10]} Ng4 {[%emt 0:01:21]} 36. Nh5 {[%emt 0:00:43]} Rxf2 {[%emt 0:00:38]} 37. Qxg4+ {[%emt 0:00:08]} f5 {[%emt 0:00:23]} 38. Qg7+ {[%emt 0:00:25]} Kc8 {[%emt 0:00:05]} 39. Qg8+ {[%emt 0:01:20]} Kc7 {[%emt 0:00:13]} 40. Qf7+ {[%emt 0:00:07]} Kc8 {[%emt 0:00:20]} 41. Kxf2 {[%emt 0:00:57]} Qc5+ {[%emt 0:00:44]} 42. Ke1 {[%emt 0:01:12]} Qc1+ {[%emt 0:00:16]} 43. Kf2 {[%emt 0:00:05]} Qc5+ {[%emt 0:00:03]} 44. Ke1 {[%emt 0:00:26]} Qc1+ {[%emt 0:01:47]} 45. Kf2 {[%emt 0:00:36]} Qc5+ {[%emt 0:00:33]} 1/2-1/2